bitfinex-derivatives/quotes_ETHF0:USTF0_20250210
["timestamp","ask_amount","ask_price","bid_price","bid_amount"]
[1739224587850,1.1805,2669.0,2668.6,1.1685]
[1739224590644,1.1805,2669.0,2668.5,3.2078]
[1739224590950,1.1805,2669.0,2668.3,2.1808]
[1739224593250,1.1805,2669.0,2668.4,0.5694]
[1739224593949,1.1805,2669.0,2668.4,1.134]
[1739224598548,1.1805,2669.0,2668.5,2.31359182]
[1739224599053,1.1805,2669.0,2668.5,5.52139182]
[1739224602261,0.6039,2669.0,2668.5,5.52139182]
[1739224602752,0.589,2669.3,2668.8,5.52139182]
[1739224602951,0.589,2669.3,2668.4,1.134]
[1739224602952,0.5906,2669.4,2669.1,5.52139182]
[1739224606156,0.5906,2669.4,2669.1,3.2078]
[1739224606554,3.7984,2669.4,2668.9,3.3117]
[1739224606755,3.7984,2669.4,2668.7,3.2078]
[1739224606964,0.74916,2669.3,2668.7,3.2078]
[1739224607171,3.2078,2669.3,2668.5,2.86759182]
[1739224607465,0.74925,2669.0,2668.5,3.46149182]
[1739224607659,1.1372,2668.9,2668.5,3.46149182]
[1739224607863,1.88647,2668.9,2668.5,1.1479]
[1739224608064,0.74934,2668.7,2668.5,1.1479]
[1739224608958,3.9571,2668.8,2668.5,1.1479]
[1739224609261,3.2078,2668.8,2668.2,2.31359182]
[1739224609453,0.74932,2668.7,2668.2,2.90749182]
[1739224609658,3.9571,2668.8,2668.2,2.90749182]
[1739224610665,0.74933,2668.7,2668.2,2.90749182]
[1739224611261,3.9571,2668.8,2668.2,2.90749182]
[1739224611463,3.2078,2668.8,2668.2,2.90749182]
[1739224612661,1.88647,2668.9,2668.2,2.90749182]
[1739224612866,3.2078,2668.8,2668.2,2.90749182]
[1739224614473,3.95709,2668.8,2668.2,2.90749182]
[1739224615167,0.74932,2668.7,2668.2,2.90749182]
[1739224615366,3.2078,2668.5,2667.9,0.5646]
[1739224615671,3.95729,2668.1,2667.8,0.00562219]
[1739224615866,0.5692,2668.0,2667.8,0.00562219]
[1739224616070,1.31872,2668.0,2667.8,0.00562219]
[1739224616263,0.5692,2668.0,2667.8,0.00562219]
[1739224617672,1.31872,2668.0,2667.8,0.00562219]
[1739224617969,0.5692,2668.0,2667.8,0.00562219]
[1739224618268,0.5692,2668.0,2667.3,0.5772]
[1739224618269,0.74959,2667.8,2667.3,0.5772]
[1739224618469,3.7793,2667.7,2667.3,0.5772]
[1739224618867,0.5482,2667.6,2667.3,0.5772]
[1739224619165,0.5482,2667.6,2667.1,0.5602]
[1739224619366,0.74966,2667.5,2667.2,0.00562219]
[1739224619573,4.97323393,2667.5,2667.2,0.00562219]
[1739224619869,4.22357393,2667.5,2667.2,0.00562219]
[1739224621369,3.2078,2667.3,2667.2,0.00562219]
[1739224621871,3.95751,2667.3,2667.2,0.00562219]
[1739224622473,15.59098734,2667.3,2666.4,1.1461]
[1739224622672,0.74982,2666.9,2666.4,3.7742]
[1739224622866,3.2078,2666.5,2665.8,5.52139182]
[1739224623175,3.2078,2666.5,2665.9,41.9304]
[1739224623371,1.1858,2666.8,2665.9,42.5106]
[1739224623668,3.21342219,2666.5,2665.9,1.71622219]
[1739224628374,4.13765549,2666.4,2665.9,1.13602219]
[1739224628872,0.5631,2666.3,2665.9,1.13602219]
[1739224630571,0.5631,2666.3,2666.0,40.8]
[1739224631579,0.00562219,2666.5,2666.1,2.31359182]
[1739224631779,0.00562219,2666.5,2666.1,2.89979182]
[1739224632375,0.00562219,2666.5,2666.3,3.2078]
[1739224632679,0.00562219,2666.5,2666.4,2.31359182]
[1739224632880,0.00562219,2666.5,2666.4,2.88709182]
[1739224633980,0.00562219,2666.5,2666.4,0.5735]
[1739224634276,0.00562219,2666.5,2666.4,2.88709182]
[1739224640877,0.00562219,2666.5,2666.4,0.5735]
[1739224645478,0.00562219,2666.5,2666.1,2.89979182]
[1739224646280,0.00562219,2666.5,2666.2,3.2078]
[1739224647784,0.00562219,2666.5,2666.1,2.89979182]
[1739224648187,0.00562219,2666.5,2666.2,3.2078]
[1739224658981,0.00562219,2666.5,2666.4,2.31359182]
[1739224660891,0.00562219,2666.5,2666.2,3.2078]
[1739224661290,0.00562219,2666.5,2666.1,2.89979182]
[1739224662196,0.00562219,2666.5,2666.2,3.2078]
[1739224663790,0.00562219,2666.5,2666.1,2.89979182]
[1739224664289,0.00562219,2666.5,2666.1,6.10759182]
[1739224664492,0.00562219,2666.5,2666.1,0.5862]
[1739224665289,0.00562219,2666.5,2666.1,6.10759182]
[1739224667294,0.00562219,2666.5,2666.2,3.2078]
[1739224673291,0.00562219,2666.5,2666.1,0.5862]
[1739224673495,0.00562219,2666.5,2666.2,3.2078]
[1739224675291,0.00562219,2666.5,2666.1,0.5862]
[1739224675496,0.00562219,2666.5,2666.2,3.2078]
[1739224677300,0.00562219,2666.5,2666.1,0.5862]
[1739224678999,0.00562219,2666.5,2666.1,3.794]
[1739224681200,0.00562219,2666.5,2666.2,3.2078]
[1739224683900,0.00562219,2666.5,2666.1,0.5862]
[1739224687304,0.60522219,2666.5,2666.1,0.5862]
[1739224690704,16.5746351,2666.5,2666.1,0.5862]
[1739224691693,16.5746351,2666.5,2666.1,1.64985325]
[1739224692405,17.63828835,2666.5,2666.1,0.5862]
[1739224692590,1.06365325,2666.3,2666.0,3.763]
[1739224692791,0.6052,2666.2,2666.0,3.763]
[1739224693003,0.6052,2666.2,2666.0,0.5552]
[1739224693206,0.5856,2666.1,2666.0,0.5552]
[1739224693694,0.5856,2666.1,2665.9,0.56962219]
[1739224694798,0.5856,2666.1,2665.9,0.00562219]
[1739224695103,1.64925325,2666.1,2665.9,0.00562219]
[1739224695400,3.2078,2666.0,2665.9,0.00562219]
[1739224695804,0.5856,2666.1,2665.9,0.00562219]
[1739224698103,3.2078,2666.0,2665.9,0.00562219]
[1739224699104,3.2078,2666.4,2665.9,0.00562219]
[1739224699308,4.3927,2666.4,2665.9,0.00562219]
[1739224700209,3.2078,2666.0,2665.9,0.00562219]
[1739224700702,3.95787,2666.0,2665.9,0.00562219]
[1739224702104,3.2078,2666.0,2665.9,0.00562219]
[1739224702706,3.8023,2666.0,2665.9,0.00562219]
[1739224703113,3.8023,2666.0,2665.9,0.00120432]
[1739224703305,3.2078,2666.0,2665.9,0.00120432]
[1739224703803,0.5945,2666.3,2665.9,0.00120432]
[1739224707813,0.5945,2666.3,2665.9,3.20900432]
[1739224708015,0.5945,2666.3,2666.0,1.7948]
[1739224709812,0.6012,2666.4,2666.0,1.7948]
[1739224717220,3.2078,2666.3,2666.0,1.7948]
[1739224717421,3.2078,2666.3,2666.0,0.6045]
[1739224717621,0.5874,2666.2,2666.0,0.6045]
[1739224720612,0.5874,2666.2,2665.9,0.00120432]
[1739224724823,3.2078,2666.0,2665.9,0.00120432]
[1739224728226,1.63741027,2666.1,2665.9,0.00120432]
[1739224728823,1.06411027,2666.1,2665.9,0.00120432]
[1739224730619,0.5874,2666.2,2665.9,0.00120432]
[1739224730821,3.2078,2666.3,2666.1,1.06411027]
[1739224731121,1.06411027,2666.3,2666.0,0.5914]
[1739224731523,1.06411027,2666.1,2665.9,3.20900432]
[1739224731720,1.06411027,2666.1,2665.9,0.00120432]
[1739224731915,0.5753,2666.0,2665.9,0.00120432]
[1739224733923,0.6012,2666.4,2665.9,0.00120432]
[1739224734228,0.5768,2666.3,2665.9,0.00120432]
[1739224734617,1.64091027,2666.3,2665.9,0.00120432]
[1739224734823,1.06411027,2666.1,2665.9,0.00120432]
[1739224735521,1.64961027,2666.1,2665.9,0.00120432]
[1739224736435,0.5855,2666.1,2665.9,0.00120432]
[1739224741029,1.64961027,2666.1,2665.9,0.00120432]
[1739224747434,17.61902318,2666.1,2665.9,0.00120432]
[1739224755533,20.82682318,2666.1,2665.9,0.00120432]
[1739224766739,20.24132318,2666.1,2665.9,0.00120432]
[1739224767537,4.16998564,2666.0,2665.5,1.7692]
[1739224767742,1.06411027,2665.6,2665.5,1.1778]
[1739224780246,4.27191027,2665.8,2665.5,1.1778]
[1739224780443,3.2078,2665.8,2665.5,1.1778]
[1739224780646,1.06411027,2666.0,2665.6,0.5866]
[1739224782844,19.17721291,2666.1,2665.7,1.06411027]
[1739224783539,19.17721291,2666.1,2665.6,0.5866]
[1739224784246,19.17721291,2666.1,2665.7,1.06411027]
[1739224785550,1.06411027,2666.0,2665.6,0.5866]
[1739224786752,1.61551027,2666.0,2665.6,0.5866]
[1739224787354,1.06411027,2665.8,2665.6,0.5866]
[1739224788947,0.5549,2665.9,2665.6,0.5866]
[1739224789945,1.06411027,2665.8,2665.6,0.5866]
[1739224792050,0.5549,2665.9,2665.6,0.5866]
[1739224796451,1.61551027,2666.0,2665.6,0.5866]
[1739224799258,4.27191027,2665.8,2665.3,0.00562219]
[1739224799458,3.2078,2665.4,2665.3,0.00562219]
[1739224799954,4.9537,2665.4,2665.3,0.00562219]
[1739224800564,5.70394,2665.4,2665.3,0.00562219]
[1739224800756,1.06411027,2665.0,2664.8,0.6014]
[1739224800953,1.1628,2664.9,2664.8,0.6014]
[1739224803466,0.5699,2664.9,2664.8,0.6014]
[1739224804355,0.00562219,2665.1,2664.8,12.11642496]
[1739224804557,0.00562219,2665.1,2664.9,1.62]
[1739224805058,0.588,2665.9,2664.9,7.62]
[1739224805357,0.588,2665.9,2665.2,3.2078]
[1739224805553,0.588,2665.9,2665.3,1.1373]
[1739224806355,0.59362219,2665.9,2665.3,1.1373]
[1739224806760,0.00562219,2665.9,2665.3,1.1373]
[1739224808355,0.00562219,2665.9,2665.4,0.5589]
[1739224808554,0.56552219,2665.9,2665.5,1.62]
[1739224812364,3.2078,2665.7,2665.5,1.62]
[1739224812569,0.5658,2665.6,2665.5,1.62]
[1739224813968,0.5658,2665.6,2665.4,0.5589]
[1739224815461,1.15882219,2665.9,2665.4,0.5589]
[1739224815667,1.71902219,2665.9,2665.4,0.5589]
[1739224817977,1.71902219,2665.9,2665.3,1.1373]
[1739224818475,5.51502496,2665.7,2665.1,1.62]
[1739224818774,5.51502496,2665.7,2665.1,2.2149]
[1739224818971,6.26518496,2665.7,2665.1,2.2149]
[1739224819370,5.51502496,2665.7,2665.1,2.2149]
[1739224819874,3.2078,2665.7,2665.1,2.2149]
[1739224820977,3.2078,2665.7,2665.2,3.2078]
[1739224822975,1.12572219,2665.9,2665.2,3.2078]
[1739224827178,0.00562219,2665.9,2665.5,3.2078]
[1739224827372,0.00562219,2665.9,2665.6,1.1326]
[1739224827574,0.00562219,2665.9,2665.6,1.6825]
[1739224830275,0.00562219,2665.9,2665.6,0.5806]
[1739224834184,0.00562219,2665.9,2665.5,3.2078]
[1739224836574,0.00562219,2665.9,2665.3,0.5871]
[1739224846585,3.2078,2665.6,2665.2,1.1555]
[1739224846794,1.1601,2665.5,2665.2,1.1555]
[1739224851891,4.3679,2665.5,2665.2,1.1555]
[1739224853797,7.42535496,2665.5,2664.8,0.04184266]
[1739224853993,7.42535496,2665.5,2664.9,1.1029]
[1739224854598,6.67512496,2665.5,2664.9,1.1029]
[1739224856599,6.98125388,2665.5,2664.9,1.1029]
[1739224857496,3.7888,2665.5,2664.9,4.3107]
[1739224858094,6.09602496,2665.5,2664.9,1.1029]
[1739224858294,6.84624496,2665.5,2664.9,1.1029]
[1739224858702,6.09602496,2665.5,2664.9,1.1029]
[1739224858900,6.84626496,2665.5,2664.9,1.1029]
[1739224860202,0.75024,2665.4,2664.9,1.1029]
[1739224860602,6.84625496,2665.5,2664.9,1.1029]
[1739224860802,6.09602496,2665.5,2664.9,1.1029]
[1739224861003,0.75025,2665.4,2664.9,1.1029]
[1739224861302,3.2078,2665.2,2664.9,1.1029]
[1739224861798,0.5479,2665.1,2664.9,1.1029]
[1739224864898,3.2078,2665.5,2664.9,1.1029]
[1739224865290,3.2078,2665.5,2664.9,4.3107]
[1739224865898,3.2078,2665.5,2665.0,40.8]
[1739224866101,3.2078,2665.5,2665.1,1.62]
[1739224866599,3.2078,2665.5,2665.2,0.5648]
[1739224866796,3.2078,2665.8,2665.4,3.2078]
[1739224866997,0.59112219,2665.9,2665.5,1.1097]
[1739224868100,3.79892219,2665.9,2665.5,1.1097]
[1739224868601,2.30722496,2665.8,2665.5,1.1097]
[1739224868804,6.37507339,2665.8,2665.2,1.1207]
[1739224869004,2.30722496,2665.8,2665.3,0.5538]
[1739224870801,19.7683351,2665.9,2665.3,0.5538]
[1739224874702,3.2078,2665.5,2665.3,0.5538]
[1739224875107,3.2078,2665.8,2665.3,0.5538]
[1739224875302,3.2078,2665.4,2665.3,0.5538]
[1739224875508,0.5885,2665.7,2665.3,0.5538]
[1739224875809,0.5961,2665.6,2665.3,0.5538]
[1739224876801,0.5486,2665.5,2665.3,0.5538]
[1739224879508,3.2078,2665.8,2665.3,0.5538]
[1739224879709,1.1182,2665.7,2665.3,0.5538]
[1739224880904,16.5783351,2665.9,2665.4,3.2078]
[1739224882109,15.9750351,2665.9,2665.4,3.2078]
[1739224885520,15.9750351,2665.9,2665.3,2.1728]
[1739224885715,17.03926471,2665.9,2665.3,3.23702961]
[1739224886612,0.5785,2665.8,2665.3,3.23702961]
[1739224888310,1.06422961,2665.7,2665.3,3.23702961]
[1739224888718,1.06422961,2665.5,2665.3,0.5538]
[1739224889019,1.06422961,2665.5,2665.2,0.5648]
[1739224889220,0.6057,2665.4,2665.2,0.5648]
[1739224893123,0.5595,2665.6,2665.3,1.06422961]
[1739224893321,0.5595,2665.6,2665.4,1.1395]
[1739224893612,0.5971,2665.8,2665.4,1.1395]
[1739224893813,1.1863,2665.8,2665.4,1.1395]
[1739224894016,1.1863,2665.8,2665.5,1.06422961]
[1739224894414,1.1863,2665.8,2665.6,0.5646]
[1739224897519,8.50323669,2665.7,2664.6,3.21342219]
[1739224897716,3.2078,2665.0,2664.6,3.21342219]
[1739224897917,3.2078,2664.7,2664.6,0.00562219]
[1739224898319,1.7686,2664.9,2664.6,0.00562219]
[1739224900424,3.2078,2664.7,2664.6,0.00562219]
[1739224903323,3.95824,2664.7,2664.6,0.00562219]
[1739224904132,3.2078,2664.7,2663.8,0.6077]
[1739224904428,3.2078,2664.3,2663.5,3.2078]
[1739224904621,0.5672,2664.2,2663.6,0.6008]
[1739224905215,0.5672,2664.2,2663.8,3.2078]
[1739224905430,0.57282219,2664.2,2663.8,3.2078]
[1739224906327,2.30784878,2664.1,2663.6,0.00562219]
[1739224906634,14.57335097,2664.0,2663.6,0.00562219]
[1739224915430,17.78115097,2664.0,2663.6,0.00562219]
[1739224916939,14.57335097,2664.0,2663.6,0.00562219]
[1739224923140,18.53180097,2664.0,2663.6,0.00562219]
[1739224923338,17.78115097,2664.0,2663.6,0.00562219]
[1739224924440,3.95852,2663.7,2663.6,0.00562219]
[1739224924637,3.2078,2663.7,2662.9,1.62]
[1739224924835,2.45757,2663.6,2662.9,2.2074]
[1739224925032,1.7068,2663.6,2662.9,2.2074]
[1739224925433,1.7068,2663.6,2662.9,0.5874]
[1739224925839,1.7068,2663.6,2663.0,0.00562219]
[1739224926345,3.2078,2663.4,2663.0,0.00562219]
[1739224932138,1.7068,2663.6,2663.0,0.00562219]
[1739224933849,3.2078,2663.4,2663.0,0.00562219]
[1739224934947,3.95861,2663.4,2663.0,0.00562219]
[1739224935145,3.2078,2663.4,2663.0,0.00562219]
[1739224941655,3.95861,2663.4,2663.0,0.00562219]
[1739224942848,3.2078,2663.4,2663.0,0.00562219]
[1739224943547,3.95862,2663.4,2663.0,0.00562219]
[1739224943955,3.2078,2663.4,2663.0,0.00562219]
[1739224945644,3.95862,2663.4,2663.0,0.00562219]
[1739224945847,3.2078,2663.4,2663.0,0.00562219]
[1739224946754,3.95861,2663.4,2663.0,0.00562219]
[1739224946952,3.2078,2663.4,2663.0,0.00562219]
[1739224947153,3.95862,2663.4,2663.0,0.00562219]
[1739224947649,3.2078,2663.4,2663.0,0.00562219]
[1739224948051,3.9586,2663.4,2663.0,0.00562219]
[1739224948255,3.2078,2663.4,2663.0,0.00562219]
[1739224948558,3.95862,2663.4,2663.0,0.00562219]
[1739224949557,3.2078,2663.4,2663.0,0.00562219]
[1739224950859,3.95861,2663.4,2663.0,0.00562219]
[1739224951363,3.9586,2663.4,2663.0,0.00562219]
[1739224951859,3.2078,2663.4,2663.0,0.00562219]
[1739224953651,3.5081,2663.4,2663.0,0.00562219]
[1739224965672,1.06632569,2663.3,2663.0,0.00562219]
[1739224966170,0.5483,2663.2,2663.0,0.00562219]
[1739224966475,0.6074,2663.1,2663.0,0.00562219]
[1739224977270,1.67372569,2663.1,2663.0,0.00562219]
[1739224977475,1.67372569,2663.1,2662.7,3.2078]
[1739224977476,2.42461569,2663.1,2662.7,3.2078]
[1739224977674,1.06632569,2662.8,2662.7,3.2078]
[1739224978487,1.06632569,2662.8,2662.4,3.2078]
[1739224978785,1.06632569,2662.6,2662.5,0.00378401]
[1739224979173,1.67402569,2662.6,2662.5,0.00378401]
[1739224982475,1.67402569,2662.6,2662.5,0.57128401]
[1739224983879,0.587,2662.7,2662.5,0.57128401]
[1739224985379,1.06632569,2662.8,2662.5,0.57128401]
[1739224986980,1.06632569,2662.8,2662.7,0.00338643]
[1739224991384,0.00563296,2662.9,2662.7,0.00338643]
[1739224992886,0.00563296,2662.9,2662.7,3.21118643]
[1739224993087,0.00563296,2662.9,2662.8,0.5845]
[1739224993386,0.00563296,2662.9,2662.8,1.1865]
[1739224999992,0.00563296,2662.9,2662.8,4.3943]
[1739225000387,0.00563296,2662.9,2662.8,1.1865]
[1739225000587,0.00563296,2662.9,2662.8,5.14527]
[1739225000783,15.96941291,2663.0,2662.9,0.75094]
[1739225001089,15.96941291,2663.0,2662.9,1.81726569]
[1739225001291,15.96941291,2663.0,2662.9,8.42606569]
[1739225001490,15.9457306,2663.0,2662.9,8.42606569]
[1739225001893,15.9457306,2663.0,2662.9,50.29239138]
[1739225003183,0.00563296,2663.2,2662.9,48.47512569]
[1739225003393,0.00563296,2663.2,2663.1,5.02501569]
[1739225003691,0.00563296,2663.2,2663.1,7.88780348]
[1739225004887,14.64047638,2663.5,2663.1,7.88780348]
[1739225005091,14.64047638,2663.5,2663.4,3.2078]
[1739225006493,14.64047638,2663.5,2663.1,7.13691348]
[1739225006993,15.23637638,2663.5,2663.1,7.13691348]
[1739225007191,15.23637638,2663.5,2663.1,3.2078]
[1739225008594,15.53667638,2663.5,2663.1,3.2078]
[1739225010493,3.2078,2663.2,2662.7,0.00338643]
[1739225010793,0.5717,2663.1,2662.7,0.00338643]
[1739225010995,0.5656,2663.0,2662.7,0.00338643]
[1739225014494,3.2078,2662.9,2662.7,0.00338643]
[1739225015294,0.75098,2662.8,2662.5,0.00378401]
[1739225015493,5.51691348,2662.6,2661.9,3.2078]
[1739225015702,2.30911348,2662.3,2661.9,3.2078]
[1739225015996,0.5795,2662.2,2661.9,3.2078]
[1739225018494,0.5795,2662.2,2661.8,0.00563296]
[1739225018798,0.5766,2662.1,2661.8,0.00563296]
[1739225019094,6.08571348,2662.0,2661.8,0.00563296]
[1739225019301,6.08571348,2662.0,2661.5,3.2078]
[1739225019691,4.1675385,2661.9,2661.5,3.2078]
[1739225020099,2.30911348,2661.7,2661.5,3.2078]
[1739225020489,2.30911348,2661.7,2661.3,0.00563296]
[1739225020490,8.09243241,2661.6,2661.3,0.00563296]
[1739225020695,2.30911348,2661.4,2661.3,0.00563296]
[1739225020896,2.30911348,2661.4,2660.6,3.2078]
[1739225021096,0.5783,2661.3,2660.6,3.2078]
[1739225022803,0.5783,2661.3,2660.7,0.5707]
[1739225023003,2.30911348,2661.4,2660.9,3.2078]
[1739225023503,4.09228247,2661.3,2660.9,3.2078]
[1739225024090,4.09228247,2661.3,2660.7,0.5707]
[1739225025602,4.09228247,2661.3,2660.6,3.2078]
[1739225029408,7.30008247,2661.3,2660.6,3.2078]
[1739225030609,7.30008247,2661.3,2660.7,1.1161]
[1739225032607,4.09228247,2661.3,2660.9,3.2078]
[1739225038111,0.5602,2661.2,2660.9,3.2078]
[1739225040611,0.5602,2661.2,2661.0,0.5933]
[1739225043611,0.5602,2661.2,2660.7,1.1161]
[1739225043815,0.5602,2661.2,2660.7,1.7147]
[1739225044317,0.5602,2661.2,2660.7,4.9225]
[1739225050615,7.10266447,2661.1,2660.7,0.5592]
[1739225050814,0.552,2661.0,2660.7,0.5592]
[1739225052122,0.5602,2661.2,2660.9,3.2078]
[1739225052720,2.30911348,2661.4,2660.9,3.2078]
[1739225055325,2.30911348,2661.1,2660.8,1.1708]
[1739225055517,0.5927,2661.0,2660.8,1.1708]
[1739225055921,0.8933,2661.0,2660.8,1.1708]
[1739225058025,0.3006,2661.0,2660.8,1.1708]
[1739225058931,0.3006,2661.0,2660.8,4.3786]
[1739225064843,3.2078,2661.6,2660.8,4.3786]
[1739225065128,2.30911348,2661.7,2661.1,3.2078]
[1739225066631,4.64773316,2661.6,2660.8,1.1708]
[1739225066830,0.5846,2661.5,2660.8,1.1708]
[1739225067036,0.5846,2661.5,2661.0,3.2078]
[1739225068134,0.5846,2661.5,2661.1,0.5854]
[1739225068640,0.596,2661.4,2661.1,0.5854]
[1739225071647,16.08619565,2661.3,2661.1,0.5854]
[1739225075846,16.08619565,2661.3,2661.1,1.33684]
[1739225076051,16.08619565,2661.3,2661.1,0.5854]
[1739225076240,16.08619565,2661.3,2661.1,1.33683]
[1739225076548,16.08619565,2661.3,2661.1,0.5854]
[1739225078152,16.08619565,2661.3,2661.1,6.5854]
[1739225078349,16.08056269,2661.3,2661.2,0.75142]
[1739225078650,16.08056269,2661.8,2661.2,0.75142]
[1739225078851,16.08056269,2661.8,2661.7,3.2078]
[1739225079854,16.08056269,2661.8,2661.4,3.2078]
[1739225080347,16.08056269,2661.8,2661.5,0.5859]
[1739225081246,16.08056269,2661.8,2661.7,3.2078]
[1739225088453,16.38106269,2661.8,2661.7,3.2078]
[1739225088654,0.3005,2661.8,2661.7,3.2078]
[1739225090449,14.9328752,2661.8,2661.7,3.2078]
[1739225095460,14.9328752,2661.8,2661.5,0.5859]
[1739225095756,14.9328752,2661.8,2661.7,3.2078]
[1739225095962,14.9328752,2661.8,2661.7,3.95908]
[1739225096164,14.9328752,2661.8,2661.7,9.95908]
[1739225096559,0.3005,2661.8,2661.7,9.95908]
[1739225100063,0.3005,2661.8,2661.7,11.11498]
[1739225104767,0.3005,2661.8,2661.7,11.9837]
[1739225104962,0.3005,2661.8,2661.7,5.9837]
[1739225105672,0.5789,2662.2,2661.7,5.9837]
[1739225105866,0.5789,2662.2,2662.1,3.2078]
[1739225106472,0.8794,2662.2,2662.1,3.2078]
[1739225108563,0.8794,2662.2,2661.7,3.2078]
[1739225115276,0.3005,2662.2,2662.0,3.2078]
[1739225115576,0.3005,2662.2,2662.1,0.5788]
[1739225115976,0.3005,2662.2,2662.1,41.3788]
[1739225116177,0.3005,2662.2,2662.1,0.5788]
[1739225117581,0.3005,2662.2,2662.1,2.1988]
[1739225120683,0.3005,2662.2,2662.0,3.2078]
[1739225120982,0.3005,2662.2,2661.8,0.5786]
[1739225120983,3.2078,2662.1,2661.3,3.2078]
[1739225121280,3.2078,2662.1,2660.6,3.2078]
[1739225121281,2.30911348,2661.7,2660.6,3.2078]
[1739225121484,3.06040348,2661.7,2660.6,3.2078]
[1739225121778,2.30911348,2661.4,2660.4,0.6011]
[1739225121985,3.2078,2661.2,2660.5,1.62]
[1739225122190,3.2078,2661.2,2660.6,3.2078]
[1739225122378,4.80166774,2661.3,2660.6,3.2078]
[1739225122576,0.5923,2661.3,2660.6,3.2078]
[1739225123984,3.2078,2661.9,2661.2,3.2078]
[1739225124281,4.9142,2661.9,2661.2,3.2078]
[1739225125289,3.2078,2661.4,2661.1,1.62]
[1739225125588,3.2078,2661.6,2661.1,1.62]
[1739225125889,2.30911348,2661.7,2661.1,1.62]
[1739225127181,2.60961348,2661.7,2661.1,1.62]
[1739225130488,14.6323752,2661.2,2661.1,1.62]
[1739225137786,14.6323752,2661.2,2660.9,3.2078]
[1739225138380,14.6323752,2661.2,2660.8,0.604]
[1739225141789,14.6323752,2661.2,2660.9,3.2078]
[1739225144498,14.6323752,2661.2,2660.8,0.604]
[1739225144697,14.6323752,2661.2,2660.9,3.2078]
[1739225145201,14.6323752,2661.2,2661.0,2.30911348]
[1739225145499,14.6323752,2661.2,2661.1,0.558]
[1739225148100,14.6323752,2661.2,2661.1,1.30945]
[1739225150295,14.6323752,2661.2,2661.1,7.30945]
[1739225150898,14.6323752,2661.8,2661.1,6.558]
[1739225151099,14.6323752,2661.8,2661.7,3.2078]
[1739225152396,14.9328752,2661.8,2661.7,3.8056]
[1739225155401,14.9328752,2661.8,2661.7,6.11471348]
[1739225155897,14.9328752,2661.8,2661.7,6.86599348]
[1739225156201,14.9328752,2661.8,2661.7,6.11471348]
[1739225157602,0.3005,2661.8,2661.7,6.11471348]
[1739225161098,0.3005,2661.8,2661.7,5.4246]
[1739225162415,0.3005,2661.8,2661.7,3.8056]
[1739225162609,0.3005,2661.8,2661.6,1.619]
[1739225162905,0.5616,2661.7,2661.6,1.619]
[1739225165410,0.3005,2661.8,2661.6,1.619]
[1739225165604,0.3005,2661.8,2661.6,2.2011]
[1739225165806,0.3005,2661.8,2661.4,3.2078]
[1739225166006,1.7177,2661.7,2661.4,4.8268]
[1739225166208,1.7177,2661.7,2661.4,3.2078]
[1739225167307,1.7177,2661.7,2661.1,3.2078]
[1739225167507,3.2078,2661.4,2660.9,1.619]
[1739225167709,4.03209566,2661.6,2660.9,4.8268]
[1739225167908,7.23461348,2661.7,2660.9,4.8268]
[1739225168315,4.03209566,2661.6,2660.9,4.8268]
[1739225169813,4.03209566,2661.6,2660.9,1.619]
[1739225170506,3.2078,2661.4,2660.9,1.619]
[1739225172313,7.23461348,2661.7,2660.9,1.619]
[1739225172715,3.2078,2661.4,2660.9,1.619]
[1739225172915,0.6048,2661.3,2660.9,1.619]
[1739225173116,1.1776,2661.2,2660.6,4.317]
[1739225173615,1.4782,2661.2,2660.6,4.317]
[1739225178121,1.4782,2661.2,2660.6,4.9211]
[1739225184520,0.3006,2661.2,2660.6,4.9211]
[1739225186824,0.3006,2661.2,2660.9,3.2078]
[1739225187021,0.3006,2661.2,2661.1,2.30911348]
[1739225187419,0.3006,2661.2,2661.1,3.46971348]
[1739225187830,0.3006,2661.2,2661.1,5.08971348]
[1739225188127,5.52254644,2662.3,2661.1,5.08971348]
[1739225188324,1.1574,2662.1,2661.5,3.2078]
[1739225188537,14.6323752,2662.2,2661.6,1.1513]
[1739225188720,14.6323752,2662.2,2661.8,3.2078]
[1739225189523,14.6323752,2662.2,2661.6,1.1513]
[1739225189524,14.6922752,2662.2,2662.1,3.2078]
[1739225199529,0.0599,2662.2,2662.1,3.2078]
[1739225200028,0.0599,2662.2,2662.1,3.8082]
[1739225200227,0.0599,2662.2,2662.1,4.55937]
[1739225200431,0.0599,2662.2,2662.1,3.8082]
[1739225202028,0.0599,2662.2,2662.1,4.55937]
[1739225202428,14.6323752,2662.7,2662.1,4.55937]
[1739225202429,14.6323752,2662.7,2662.2,0.75114]
[1739225202627,14.6323752,2662.7,2662.6,6.26794348]
[1739225202932,14.6323752,2662.7,2662.6,12.74365211]
[1739225203127,14.6323752,2662.7,2662.6,59.54365211]
[1739225203629,14.6323752,2662.7,2662.6,58.79262211]
[1739225203826,14.6323752,2662.7,2662.6,53.93591348]
[1739225204035,14.6323752,2662.7,2662.6,47.93591348]
[1739225204837,0.00563296,2662.9,2662.6,47.93591348]
[1739225205038,0.00563296,2662.9,2662.6,48.49461348]
[1739225205837,0.00563296,2662.9,2662.7,0.5554]
[1739225213337,0.00563296,2662.9,2662.7,41.3554]
[1739225214830,0.00563296,2662.9,2662.8,3.2078]
[1739225215336,0.00563296,2662.9,2662.7,41.3554]
[1739225215543,0.00563296,2662.9,2662.8,3.2078]
[1739225216139,0.00563296,2662.9,2662.7,41.3554]
[1739225216341,0.00563296,2662.9,2662.8,3.2078]
[1739225223653,0.00563296,2662.9,2662.8,4.8258]
[1739225224750,0.00563296,2662.9,2662.8,5.3846]
[1739225234252,0.00563296,2662.9,2662.8,3.2078]
[1739225234555,0.00563296,2662.9,2662.6,3.92711348]
[1739225236547,0.00563296,2662.9,2662.6,2.30911348]
[1739225236749,0.00563296,2662.9,2662.6,3.92711348]
[1739225237461,0.00563296,2662.9,2662.6,7.13491348]
[1739225237854,14.6323752,2662.7,2662.6,7.13491348]
[1739225247764,14.6323752,2662.7,2662.6,5.8919926]
[1739225248359,14.6323752,2662.7,2662.5,0.6068]
[1739225248360,14.6323752,2662.7,2662.4,0.00563296]
[1739225248662,1.7535,2662.6,2662.4,0.00563296]